[Event "20th Prague Open 2022"]
[Site "Prague"]
[Date "2022.01.09"]
[Round "4.12"]
[White "Mannion, Stephen R"]
[Black "Keerti Shree Reddy"]
[Result "1-0"]
[ECO "B38"]
[WhiteElo "2267"]
[BlackElo "1482"]
[Annotator "RC"]
[PlyCount "125"]
[EventDate "2022.01.07"]
[EventType "swiss"]
[EventCountry "CZE"]
[SourceTitle "playchess.com"]
[Source "ChessBase"]
[SourceQuality "1"]
[TimeControl "40/5400+30:1800+30"]

1. e4 {[%emt 0:00:02]} c5 {[%emt 0:00:20]} 2. Nf3 {[%emt 0:00:06]} g6 {[%emt 0:00:16]} 3. d4 {[%emt 0:00:18]} cxd4 {[%emt 0:00:03]} 4. Nxd4 {[%emt 0:00:06]} Bg7 {[%emt 0:00:15]} 5. c4 {[%emt 0:00:37]} Nc6 {[%emt 0:00:10]} 6. Be3 {[%emt 0:00:18]} Nf6 {[%emt 0:00:11]} 7. Nc3 {[%emt 0:00:06]} d6 {[%emt 0:01:03]} 8. Be2 {[%emt 0:00:28]} O-O {[%emt 0:00:43]} 9. O-O {[%emt 0:00:28]} Bd7 {[%emt 0:01:22]} 10. Nc2 {[%emt 0:03:18]} Ne5 {[%emt 0:06:29]} 11. f3 {[%emt 0:02:51]} Bc6 {[%emt 0:03:50]} 12. Qd2 {[%emt 0:02:21]} b6 {[%emt 0:05:06]} 13. Rfd1 {[%emt 0:02:47]} Rc8 {[%emt 0:03:02]} 14. Rac1 {[%emt 0:02:22]} Bb7 {[%emt 0:04:07]} 15. b3 {[%emt 0:01:15]} h5 {[%emt 0:03:25]} 16. Nd5 {[%emt 0:05:17]} Ned7 {[%emt 0:14:45]} 17. Nd4 {[%emt 0:05:38]} Ba6 {[%emt 0:02:42]} 18. Bf1 {[%emt 0:04:34]} Kh7 {[%emt 0:09:59]} 19. Kh1 {[%emt 0:03:07]} Nc5 {[%emt 0:06:23]} 20. Bg5 {[%emt 0:10:45]} Ng8 {[%emt 0:05:08]} 21. g3 {[%emt 0:07:59]} Bxd4 {[%emt 0:06:04]} 22. Qxd4 {[%emt 0:00:11]} Ne6 {[%emt 0:00:03]} 23. Qd2 {[%emt 0:00:25]} Nxg5 {[%emt 0:00:15]} 24. Qxg5 {[%emt 0:00:03]} Bb7 {[%emt 0:03:25]} 25. Qe3 Qd7 {[%emt 0:03:47]} 26. Nf4 {[%emt 0:09:55]} Qc6 {[%emt 0:00:34]} 27. Bg2 {[%emt 0:00:19]} Nf6 {[%emt 0:01:37]} 28. h4 {[%emt 0:04:49]} Kg7 {[%emt 0:01:39]} 29. Bh3 {[%emt 0:03:06]} Qc5 {[%emt 0:01:01]} 30. Qd2 {[%emt 0:01:44]} Rcd8 {[%emt 0:02:40]} 31. Nd5 {[%emt 0:00:25]} Rfe8 {[%emt 0:00:38]} 32. b4 {[%emt 0:06:33]} Qc6 {[%emt 0:00:13]} 33. Qb2 {[%emt 0:00:14]} Bc8 {[%emt 0:01:04]} 34. Bg2 {[%emt 0:04:49]} e5 {[%emt 0:00:40]} 35. Rd3 {[%emt 0:07:47]} Be6 {[%emt 0:04:01]} 36. Qd2 {[%emt 0:00:34]} Qc8 {[%emt 0:04:34]} 37. a3 {[%emt 0:01:04]} Rd7 {[%emt 0:01:26]} 38. Nxf6 {[%emt 0:04:56]} Kxf6 {[%emt 0:00:02]} 39. f4 {[%emt 0:00:05]} exf4 {[%emt 0:03:09]} 40. gxf4 {[%emt 0:02:19]} Ke7 {[%emt 0:01:47]} 41. f5 {[%emt 0:32:38]} Bxc4 {[%emt 0:32:12]} 42. f6+ {[%emt 0:00:00]} Kd8 {[%emt 0:00:00]} 43. Rxd6 {[%emt 0:00:00]} Re6 {[%emt 0:00:00]} 44. Rxd7+ {[%emt 0:00:00]} Qxd7 {[%emt 0:00:00]} 45. Qxd7+ {[%emt 0:00:00]} Kxd7 {[%emt 0:00:00]} 46. Rxc4 {[%emt 0:00:00]} Rxf6 {[%emt 0:00:00]} 47. e5 {[%emt 0:00:00]} Rf2 {[%emt 0:00:00]} 48. Bh3+ {[%emt 0:00:00]} Ke7 {[%emt 0:00:00]} 49. Rc7+ {[%emt 0:00:00]} Kf8 {[%emt 0:00:00]} 50. Rxa7 {[%emt 0:00:00]} Re2 {[%emt 0:00:00]} 51. e6 {[%emt 0:00:00]} fxe6 {[%emt 0:00:00]} 52. Rb7 {[%emt 0:00:00]} Re4 {[%emt 0:00:00]} 53. Kg2 {[%emt 0:00:00]} Rxh4 {[%emt 0:00:00]} 54. Bxe6 {[%emt 0:00:00]} Rd4 {[%emt 0:00:00]} 55. Rxb6 {[%emt 0:00:00]} Rd2+ {[%emt 0:00:00]} 56. Kg1 {[%emt 0:00:00]} Rd1+ {[%emt 0:00:00]} 57. Kf2 {[%emt 0:00:00]} Ra1 {[%emt 0:00:00]} 58. Ra6 {[%emt 0:00:00]} g5 {[%emt 0:00:00]} 59. b5 {[%emt 0:00:00]} Ke7 {[%emt 0:00:00]} 60. Bd5 {[%emt 0:01:34]} Kd7 {[%emt 0:00:00]} 61. b6 {[%emt 0:00:29]} Rb1 {[%emt 0:00:00]} 62. b7 {[%emt 0:00:25]} Kc7 {[%emt 0:00:00]} 63. Ra8 {[%emt 0:00:27]} 1-0

[Event "20th Prague Open 2022"]
[Site "Prague"]
[Date "2022.01.09"]
[Round "4.19"]
[White "Lorans, Sylvain"]
[Black "Macicek, Jakub"]
[Result "1-0"]
[ECO "E20"]
[WhiteElo "2110"]
[BlackElo "2250"]
[Annotator "RC"]
[PlyCount "67"]
[EventDate "2022.01.07"]
[EventType "swiss"]
[EventCountry "CZE"]
[SourceTitle "playchess.com"]
[Source "ChessBase"]
[SourceQuality "1"]
[TimeControl "40/5400+30:1800+30"]

1. d4 {[%emt 0:00:03]} Nf6 {[%emt 0:00:18]} 2. c4 {[%emt 0:00:05]} e6 {[%emt 0:00:15]} 3. Nc3 {[%emt 0:00:07]} Bb4 {[%emt 0:00:29]} 4. f3 {[%emt 0:00:08]} c5 {[%emt 0:04:41]} 5. d5 {[%emt 0:00:06]} b5 {[%emt 0:02:05]} 6. e4 {[%emt 0:00:09]} d6 {[%emt 0:00:54]} 7. Bd2 {[%emt 0:02:30]} a6 {[%emt 0:09:29]} 8. a4 {[%emt 0:01:41]} bxa4 {[%emt 0:18:15]} 9. Qxa4+ {[%emt 0:02:01]} Bd7 {[%emt 0:02:14]} 10. Qc2 {[%emt 0:01:01]} e5 {[%emt 0:00:17]} 11. Bd3 {[%emt 0:03:31]} Ng8 {[%emt 0:11:19]} 12. Nge2 {[%emt 0:07:39]} Ne7 {[%emt 0:00:08]} 13. O-O {[%emt 0:01:09]} Ng6 {[%emt 0:00:12]} 14. f4 {[%emt 0:10:36]} exf4 {[%emt 0:00:08]} 15. Nxf4 {[%emt 0:00:04]} Ne5 {[%emt 0:02:14]} 16. Be2 {[%emt 0:09:35]} Bc8 {[%emt 0:09:43]} 17. Qc1 {[%emt 0:03:15]} O-O {[%emt 0:11:07]} 18. Nh5 {[%emt 0:02:08]} f6 {[%emt 0:02:21]} 19. Qe1 {[%emt 0:04:11]} Ra7 {[%emt 0:02:24]} 20. Qg3 {[%emt 0:03:56]} Kh8 21. Bf4 {[%emt 0:06:26]} g6 {[%emt 0:11:23]} 22. Nb5 {[%emt 0:03:17]} Raf7 {[%emt 0:03:00]} 23. Nxd6 {[%emt 0:01:40]} Qxd6 {[%emt 0:00:49]} 24. Nxf6 {[%emt 0:00:06]} Nbc6 {[%emt 0:05:11]} 25. dxc6 {[%emt 0:01:51]} Qd4+ {[%emt 0:00:08]} 26. Kh1 {[%emt 0:05:04]} Nxc6 {[%emt 0:00:07]} 27. Bh6 {[%emt 0:06:01]} Rd8 {[%emt 0:00:25]} 28. Rad1 {[%emt 0:02:46]} Qxb2 {[%emt 0:00:34]} 29. Rxd8+ {[%emt 0:00:11]} Nxd8 {[%emt 0:00:06]} 30. Qd6 {[%emt 0:02:34]} Ba5 {[%emt 0:03:47]} 31. Ne8 {[%emt 0:02:44]} Rxf1+ {[%emt 0:00:46]} 32. Bxf1 {[%emt 0:00:03]} Ne6 {[%emt 0:00:45]} 33. Bg7+ {[%emt 0:00:23]} Nxg7 {[%emt 0:00:11]} 34. Qf8# {[%emt 0:00:06]} 1-0

[Event "20th Prague Open 2022"]
[Site "Prague"]
[Date "2022.01.09"]
[Round "4.21"]
[White "Thompson, Ian D"]
[Black "Bochnicka, Vladimir"]
[Result "0-1"]
[ECO "A04"]
[WhiteElo "2095"]
[BlackElo "2222"]
[Annotator "RC"]
[PlyCount "74"]
[EventDate "2022.01.07"]
[EventType "swiss"]
[EventCountry "CZE"]
[SourceTitle "playchess.com"]
[Source "ChessBase"]
[SourceQuality "1"]
[TimeControl "40/5400+30:1800+30"]

1. Nf3 {[%emt 0:00:04]} f5 {[%emt 0:00:08]} 2. d4 {[%emt 0:02:09]} Nf6 {[%emt 0:00:08]} 3. Bg5 {[%emt 0:04:37]} e6 {[%emt 0:00:26]} 4. Nbd2 {[%emt 0:00:40]} Be7 {[%emt 0:00:24]} 5. Bxf6 {[%emt 0:06:32]} Bxf6 {[%emt 0:00:09]} 6. e4 {[%emt 0:00:09]} O-O {[%emt 0:00:30]} 7. Bd3 {[%emt 0:00:38]} d5 {[%emt 0:00:31]} 8. e5 {[%emt 0:01:59]} Be7 {[%emt 0:00:13]} 9. Qe2 {[%emt 0:04:45]} b6 {[%emt 0:04:14]} 10. O-O {[%emt 0:08:59]} c5 {[%emt 0:03:45]} 11. c3 {[%emt 0:03:52]} Bd7 {[%emt 0:02:01]} 12. a3 {[%emt 0:05:18]} Nc6 {[%emt 0:02:32]} 13. b4 {[%emt 0:06:24]} Be8 {[%emt 0:02:30]} 14. Rfe1 {[%emt 0:12:24]} Bh5 {[%emt 0:06:23]} 15. dxc5 {[%emt 0:12:51]} bxc5 {[%emt 0:02:05]} 16. bxc5 {[%emt 0:00:11]} Bxc5 {[%emt 0:01:31]} 17. Nb3 {[%emt 0:00:59]} Bb6 {[%emt 0:03:44]} 18. c4 {[%emt 0:01:41]} Bc7 {[%emt 0:10:10]} 19. Nc5 {[%emt 0:08:07]} Nd4 {[%emt 0:22:10]} 20. Qe3 {[%emt 0:01:03]} Nxf3+ {[%emt 0:01:22]} 21. gxf3 {[%emt 0:00:03]} f4 {[%emt 0:00:18]} 22. Qe2 {[%emt 0:00:46]} Qe7 {[%emt 0:00:56]} 23. Nxe6 {[%emt 0:02:33]} Qxe6 {[%emt 0:00:51]} 24. cxd5 {[%emt 0:00:08]} Qh3 {[%emt 0:01:01]} 25. Qf1 {[%emt 0:00:53]} Qh4 {[%emt 0:05:56]} 26. Qg2 {[%emt 0:02:21]} Bb6 {[%emt 0:10:46]} 27. d6 {[%emt 0:02:26]} Bg6 {[%emt 0:02:21]} 28. Bc4+ {[%emt 0:05:50]} Kh8 {[%emt 0:00:53]} 29. e6 {[%emt 0:03:33]} Bf5 {[%emt 0:04:17]} 30. e7 {[%emt 0:02:38]} Bh3 {[%emt 0:00:22]} 31. exf8=Q+ {[%emt 0:00:47]} Rxf8 {[%emt 0:00:06]} 32. Re2 {[%emt 0:00:33]} Bxg2 {[%emt 0:00:21]} 33. Kxg2 {[%emt 0:00:03]} Qg5+ {[%emt 0:01:14]} 34. Kf1 {[%emt 0:00:03]} Qh6 {[%emt 0:01:59]} 35. Re6 {[%emt 0:00:30]} Qxh2 {[%emt 0:00:38]} 36. Ra2 {[%emt 0:00:10]} Qh1+ {[%emt 0:02:14]} 37. Ke2 {[%emt 0:00:02]} Ba5 {[%emt 0:01:15]} 0-1

[Event "20th Prague Open 2022"]
[Site "Prague"]
[Date "2022.01.09"]
[Round "4.22"]
[White "Michalczak, Thomas"]
[Black "Mach, Petr"]
[Result "1-0"]
[ECO "B01"]
[WhiteElo "2218"]
[BlackElo "2090"]
[Annotator "RC"]
[PlyCount "203"]
[EventDate "2022.01.07"]
[EventType "swiss"]
[EventCountry "CZE"]
[SourceTitle "playchess.com"]
[Source "ChessBase"]
[SourceQuality "1"]
[TimeControl "40/5400+30:1800+30"]

1. e4 {[%emt 0:00:02]} d5 {[%emt 0:00:02]} 2. exd5 {[%emt 0:00:25]} Nf6 {[%emt 0:00:04]} 3. d4 {[%emt 0:00:08]} Nxd5 {[%emt 0:00:04]} 4. c4 {[%emt 0:00:05]} Nb6 {[%emt 0:00:03]} 5. Nf3 {[%emt 0:00:06]} g6 {[%emt 0:00:01]} 6. h3 {[%emt 0:00:07]} Bg7 {[%emt 0:00:06]} 7. Nc3 {[%emt 0:00:06]} O-O {[%emt 0:00:04]} 8. Be3 {[%emt 0:00:05]} Nc6 {[%emt 0:00:05]} 9. Be2 {[%emt 0:00:05]} e5 {[%emt 0:00:04]} 10. d5 {[%emt 0:00:05]} Ne7 {[%emt 0:00:03]} 11. g4 {[%emt 0:00:06]} f5 {[%emt 0:00:26]} 12. Qb3 {[%emt 0:00:06]} fxg4 {[%emt 0:20:30]} 13. hxg4 {[%emt 0:01:33]} Bxg4 {[%emt 0:01:28]} 14. Ng5 {[%emt 0:00:10]} Bxe2 {[%emt 0:00:06]} 15. Nxe2 {[%emt 0:07:35]} Nf5 {[%emt 0:06:27]} 16. Rxh7 {[%emt 0:16:04]} Qf6 {[%emt 0:09:47]} 17. Ne4 {[%emt 0:06:55]} Qf7 {[%emt 0:09:47]} 18. O-O-O {[%emt 0:01:07]} Nxe3 {[%emt 0:00:17]} 19. fxe3 {[%emt 0:00:39]} Qf3 {[%emt 0:07:25]} 20. N2g3 {[%emt 0:23:23]} Nxc4 {[%emt 0:06:27]} 21. Rxg7+ {[%emt 0:03:47]} Kxg7 {[%emt 0:00:09]} 22. Qxc4 {[%emt 0:00:15]} Qxe3+ {[%emt 0:00:13]} 23. Kc2 {[%emt 0:06:10]} Rf7 {[%emt 0:05:23]} 24. Rd3 {[%emt 0:02:11]} Qf4 {[%emt 0:05:24]} 25. d6 {[%emt 0:09:16]} cxd6 {[%emt 0:00:16]} 26. Qe6 {[%emt 0:00:20]} Rc7+ {[%emt 0:03:08]} 27. Kb3 {[%emt 0:01:35]} Qf7 {[%emt 0:04:44]} 28. Ng5 {[%emt 0:00:20]} Qd7 {[%emt 0:02:09]} 29. a4 {[%emt 0:08:34]} Re8 {[%emt 0:02:22]} 30. Qxd6 {[%emt 0:00:56]} Qxd6 {[%emt 0:01:26]} 31. Rxd6 {[%emt 0:00:23]} Kh6 {[%emt 0:03:00]} 32. N3e4 {[%emt 0:01:04]} Ree7 {[%emt 0:05:35]} 33. Rd1 {[%emt 0:03:05]} Rc6 {[%emt 0:02:58]} 34. Rh1+ {[%emt 0:03:24]} Kg7 {[%emt 0:00:04]} 35. Rh7+ {[%emt 0:02:11]} Kf8 {[%emt 0:00:06]} 36. Rh8+ {[%emt 0:00:05]} Kg7 {[%emt 0:00:04]} 37. Rh7+ {[%emt 0:00:06]} Kf8 {[%emt 0:00:03]} 38. Rh8+ {[%emt 0:00:13]} Kg7 {[%emt 0:00:23]} 39. Rh2 {[%emt 0:00:09]} Kf8 {[%emt 0:03:21]} 40. Rf2+ {[%emt 0:00:35]} Kg7 {[%emt 0:01:26]} 41. Kb4 {[%emt 0:31:23]} Rec7 {[%emt 0:32:47]} 42. Rh2 {[%emt 0:00:34]} Kg8 {[%emt 0:00:00]} 43. Rh6 {[%emt 0:00:00]} Rd7 {[%emt 0:00:00]} 44. Rh2 {[%emt 0:00:00]} Rd4+ {[%emt 0:00:00]} 45. Ka3 {[%emt 0:00:00]} Rcc4 {[%emt 0:00:00]} 46. b3 {[%emt 0:00:00]} Rxe4 {[%emt 0:00:00]} 47. bxc4 {[%emt 0:00:00]} Rxc4 {[%emt 0:00:00]} 48. Re2 {[%emt 0:00:00]} a6 {[%emt 0:00:00]} 49. Rxe5 {[%emt 0:00:00]} b5 {[%emt 0:00:00]} 50. axb5 {[%emt 0:00:00]} axb5 {[%emt 0:00:00]} 51. Rxb5 {[%emt 0:00:00]} Kg7 {[%emt 0:00:00]} 52. Kb3 {[%emt 0:00:00]} Rc8 {[%emt 0:00:00]} 53. Ne4 {[%emt 0:00:00]} Rf8 {[%emt 0:00:00]} 54. Kc3 {[%emt 0:00:00]} Rf5 {[%emt 0:00:00]} 55. Rb6 {[%emt 0:00:00]} Kh6 {[%emt 0:00:00]} 56. Kd4 {[%emt 0:00:00]} Ra5 {[%emt 0:00:00]} 57. Ke3 {[%emt 0:00:00]} Ra1 {[%emt 0:00:00]} 58. Kf4 {[%emt 0:00:00]} Rf1+ {[%emt 0:00:00]} 59. Kg4 {[%emt 0:00:00]} Rf5 {[%emt 0:00:00]} 60. Nf6 {[%emt 0:00:00]} Kg7 {[%emt 0:00:00]} 61. Ne4 {[%emt 0:00:00]} Kh6 {[%emt 0:00:00]} 62. Ng3 {[%emt 0:00:00]} Ra5 {[%emt 0:00:00]} 63. Kf4 {[%emt 0:00:00]} Rc5 {[%emt 0:00:00]} 64. Rb1 {[%emt 0:00:00]} Ra5 {[%emt 0:00:00]} 65. Rh1+ {[%emt 0:00:00]} Kg7 {[%emt 0:00:00]} 66. Ne4 {[%emt 0:00:00]} Rh5 {[%emt 0:00:00]} 67. Ra1 {[%emt 0:00:00]} Rf5+ {[%emt 0:00:00]} 68. Kg4 {[%emt 0:00:00]} Kh6 {[%emt 0:00:00]} 69. Ra7 {[%emt 0:00:00]} Rb5 {[%emt 0:00:22]} 70. Kg3 {[%emt 0:02:40]} Rb3+ {[%emt 0:00:39]} 71. Kf4 {[%emt 0:00:16]} Rb5 {[%emt 0:00:36]} 72. Kg4 {[%emt 0:00:05]} Rb4 {[%emt 0:00:30]} 73. Re7 {[%emt 0:00:08]} Ra4 {[%emt 0:00:23]} 74. Kf4 {[%emt 0:00:51]} Ra5 {[%emt 0:01:02]} 75. Nf2 {[%emt 0:00:28]} Rf5+ {[%emt 0:00:31]} 76. Kg3 {[%emt 0:00:07]} Ra5 {[%emt 0:00:18]} 77. Kh4 {[%emt 0:01:42]} Rh5+ {[%emt 0:01:46]} 78. Kg3 {[%emt 0:00:07]} Ra5 {[%emt 0:00:07]} 79. Nh3 {[%emt 0:00:08]} Ra3+ {[%emt 0:00:56]} 80. Kg4 {[%emt 0:00:07]} Ra5 {[%emt 0:00:15]} 81. Re6 {[%emt 0:00:47]} Rb5 {[%emt 0:01:07]} 82. Nf4 {[%emt 0:00:20]} Rg5+ {[%emt 0:00:15]} 83. Kh4 {[%emt 0:00:32]} Rg1 {[%emt 0:00:17]} 84. Ra6 {[%emt 0:02:13]} Kh7 {[%emt 0:00:27]} 85. Ne6 {[%emt 0:00:25]} Kh6 {[%emt 0:00:18]} 86. Ra8 {[%emt 0:01:02]} Rh1+ {[%emt 0:01:39]} 87. Kg4 {[%emt 0:00:08]} Rg1+ {[%emt 0:00:08]} 88. Kf4 {[%emt 0:00:13]} Rf1+ {[%emt 0:00:24]} 89. Kg3 {[%emt 0:00:08]} Kh7 {[%emt 0:00:39]} 90. Ra6 {[%emt 0:03:48]} Kh6 {[%emt 0:01:30]} 91. Ra4 {[%emt 0:01:50]} Rf5 {[%emt 0:01:07]} 92. Ra8 {[%emt 0:01:03]} Kh7 {[%emt 0:01:13]} 93. Kg4 {[%emt 0:00:15]} Rf1 {[%emt 0:02:04]} 94. Ng5+ {[%emt 0:00:32]} Kg7 {[%emt 0:00:14]} 95. Ra7+ {[%emt 0:00:04]} Kg8 {[%emt 0:00:23]} 96. Ne6 {[%emt 0:00:30]} Rf6 {[%emt 0:02:17]} 97. Re7 {[%emt 0:00:09]} Rf1 {[%emt 0:00:32]} 98. Kg5 {[%emt 0:00:28]} Rg1+ {[%emt 0:01:56]} 99. Kf6 {[%emt 0:00:26]} Kh8 {[%emt 0:00:09]} 100. Re8+ {[%emt 0:00:26]} Kh7 {[%emt 0:00:14]} 101. Ng5+ {[%emt 0:00:04]} Kh6 102. Rh8# 1-0

[Event "20th Prague Open 2022"]
[Site "Prague"]
[Date "2022.01.09"]
[Round "4.24"]
[White "Grutter, Tim"]
[Black "Zadrapa, Radek"]
[Result "1-0"]
[ECO "B90"]
[WhiteElo "2194"]
[BlackElo "2021"]
[Annotator "NA RC"]
[PlyCount "91"]
[EventDate "2022.01.07"]
[EventType "swiss"]
[EventCountry "CZE"]
[SourceTitle "playchess.com"]
[Source "ChessBase"]
[SourceQuality "1"]
[TimeControl "40/5400+30:1800+30"]

1. e4 {[%emt 0:00:05]} c5 {[%emt 0:00:05]} 2. Nf3 {[%emt 0:00:09]} d6 {[%emt 0:00:04]} 3. d4 {[%emt 0:00:05]} cxd4 {[%emt 0:00:02]} 4. Nxd4 {[%emt 0:00:05]} Nf6 {[%emt 0:00:03]} 5. Nc3 {[%emt 0:00:05]} a6 {[%emt 0:00:04]} 6. h4 {[%emt 0:00:39]} b5 {[%emt 0:02:26]} 7. a4 {[%emt 0:00:25]} b4 {[%emt 0:08:07]} 8. Nd5 {[%emt 0:00:49]} e6 {[%emt 0:08:41]} 9. Nxf6+ {[%emt 0:01:52]} Qxf6 {[%emt 0:02:28]} 10. Bg5 {[%emt 0:06:23]} Qe5 {[%emt 0:01:45]} 11. Bd3 {[%emt 0:04:47]} Nd7 {[%emt 0:03:11]} 12. Nf3 {[%emt 0:07:41]} Qxb2 {[%emt 0:04:32]} 13. O-O {[%emt 0:01:00]} h6 {[%emt 0:01:33]} 14. Bd2 {[%emt 0:06:41]} Be7 {[%emt 0:07:02]} 15. Qe2 {[%emt 0:06:11]} Qf6 {[%emt 0:05:45]} 16. Bxb4 {[%emt 0:03:27]} O-O $16 {[%emt 0:02:27]} ({Black should play} 16... e5 $14) 17. e5 {[%emt 0:02:56]} Qf4 {[%emt 0:02:52]} 18. exd6 {[%emt 0:07:44]} Qxb4 {[%emt 0:10:13]} 19. dxe7 {[%emt 0:00:30]} Re8 {[%emt 0:00:07]} 20. Rfb1 {[%emt 0:09:12]} Qg4 {[%emt 0:03:57]} 21. Qe3 {[%emt 0:04:22]} Nf6 {[%emt 0:03:56]} 22. Qc5 {[%emt 0:09:01]} Bd7 {[%emt 0:04:14]} 23. Rb4 {[%emt 0:02:44]} Qh5 {[%emt 0:01:30]} 24. Qxh5 {[%emt 0:00:27]} Nxh5 {[%emt 0:00:06]} 25. Ne5 {[%emt 0:00:31]} Ra7 {[%emt 0:08:29]} 26. Nxd7 {[%emt 0:01:14]} Rxd7 {[%emt 0:00:09]} 27. Bxa6 {[%emt 0:00:12]} Rdxe7 {[%emt 0:00:11]} 28. Rb7 {[%emt 0:02:09]} Kf8 {[%emt 0:00:18]} 29. Rab1 {[%emt 0:02:16]} Ra8 {[%emt 0:02:19]} 30. Rxe7 {[%emt 0:02:06]} Kxe7 {[%emt 0:00:05]} 31. Rb7+ {[%emt 0:00:09]} Kd6 {[%emt 0:00:41]} 32. Bb5 {[%emt 0:00:24]} f5 {[%emt 0:00:26]} 33. c4 {[%emt 0:01:53]} Ra5 {[%emt 0:02:44]} 34. Rb6+ {[%emt 0:01:53]} Ke7 {[%emt 0:00:44]} 35. c5 {[%emt 0:00:11]} Nf6 {[%emt 0:00:28]} 36. Rb7+ {[%emt 0:00:11]} Kd8 {[%emt 0:01:20]} 37. Rxg7 {[%emt 0:00:11]} Ne4 {[%emt 0:00:15]} 38. c6 {[%emt 0:00:19]} Nc5 {[%emt 0:01:27]} 39. Rh7 {[%emt 0:01:32]} Nxa4 {[%emt 0:01:05]} 40. c7+ {[%emt 0:00:10]} Kc8 {[%emt 0:00:18]} 41. Bd7+ {[%emt 0:30:05]} Kxc7 {[%emt 0:30:08]} 42. Bxa4+ {[%emt 0:00:05]} Kd6 {[%emt 0:00:23]} 43. Be8 {[%emt 0:00:58]} Ra8 {[%emt 0:01:38]} 44. Bh5 {[%emt 0:00:33]} Ra4 {[%emt 0:00:12]} 45. g3 {[%emt 0:00:24]} f4 {[%emt 0:00:30]} 46. Rxh6 {[%emt 0:01:00]} 1-0